[Event "Early-Titled-Tuesday-Blitz-April-02-2024"]
[Site "Chess.com"]
[Date "2024.04.02"]
[Round "6"]
[White "Al_Shima"]
[Black "chito89"]
[Result "1-0"]
[WhiteElo "2496"]
[BlackElo "2799"]
[TimeControl "180+1"]
[EndTime "9:08:05 PDT"]
[Termination "Al_Shima won by resignation"]

1. e4 {[%clk 0:03:00.9]} 1... c6 {[%clk 0:02:58.9]} 2. Nc3 {[%clk 0:02:58.2]}
2... d5 {[%clk 0:02:58.9]} 3. Nf3 {[%clk 0:02:59.1]} 3... Bg4 {[%clk 0:02:55.5]}
4. h3 {[%clk 0:02:58.8]} 4... Bxf3 {[%clk 0:02:55.3]} 5. Qxf3 {[%clk 0:02:59.7]}
5... e6 {[%clk 0:02:54.9]} 6. g3 {[%clk 0:02:59.4]} 6... g6 {[%clk 0:02:53.2]}
7. Bg2 {[%clk 0:02:59.1]} 7... Bg7 {[%clk 0:02:53.3]} 8. O-O {[%clk 0:02:58.2]}
8... Nd7 {[%clk 0:02:49.2]} 9. d3 {[%clk 0:02:55.8]} 9... Ne7 {[%clk 0:02:46.4]}
10. Qe2 {[%clk 0:02:44.9]} 10... O-O {[%clk 0:02:45.1]} 11. Kh2 {[%clk
0:02:29.4]} 11... a5 {[%clk 0:02:42.3]} 12. f4 {[%clk 0:02:28.9]} 12... a4
{[%clk 0:02:39.4]} 13. a3 {[%clk 0:02:28.4]} 13... Qb6 {[%clk 0:02:24.5]} 14.
Nd1 {[%clk 0:02:23.4]} 14... Qa6 {[%clk 0:01:41.4]} 15. e5 {[%clk 0:02:21.4]}
15... Rae8 {[%clk 0:01:16]} 16. Re1 {[%clk 0:02:15.8]} 16... Nf5 {[%clk
0:01:05.4]} 17. c3 {[%clk 0:02:14]} 17... f6 {[%clk 0:01:03.5]} 18. d4 {[%clk
0:02:08.3]} 18... Qxe2 {[%clk 0:01:04.4]} 19. Rxe2 {[%clk 0:02:07.8]} 19... c5
{[%clk 0:01:05.3]} 20. Be3 {[%clk 0:01:59]} 20... cxd4 {[%clk 0:01:02.4]} 21.
cxd4 {[%clk 0:01:57.5]} 21... fxe5 {[%clk 0:00:56]} 22. dxe5 {[%clk 0:01:55.3]}
22... g5 {[%clk 0:00:50.4]} 23. fxg5 {[%clk 0:01:19.5]} 23... Bxe5 {[%clk
0:00:42.1]} 24. Bf2 {[%clk 0:01:17.3]} 24... Bd6 {[%clk 0:00:34.9]} 25. Nc3
{[%clk 0:01:15]} 25... Nc5 {[%clk 0:00:24.4]} 26. Nb5 {[%clk 0:00:57]} 26... Be7
{[%clk 0:00:16.2]} 27. Nc7 {[%clk 0:00:55.2]} 27... Rc8 {[%clk 0:00:13.1]} 28.
Nxe6 {[%clk 0:00:55.7]} 28... Nxe6 {[%clk 0:00:13.3]} 29. Rxe6 {[%clk
0:00:56.6]} 29... Rc2 {[%clk 0:00:12.3]} 30. Kg1 {[%clk 0:00:38.9]} 30... Rxb2
{[%clk 0:00:02.9]} 31. Bxd5 {[%clk 0:00:34.8]} 31... Kh8 {[%clk 0:00:01.7]} 32.
Rae1 {[%clk 0:00:28.5]} 32... Rxf2 {[%clk 0:00:01.3]} 33. Kxf2 {[%clk
0:00:29.4]} 33... Nd4+ {[%clk 0:00:01.4]} 34. Kg2 {[%clk 0:00:16.3]} 34... Nxe6
{[%clk 0:00:01.4]} 35. Rxe6 {[%clk 0:00:17.2]} 35... Bxa3 {[%clk 0:00:01.8]} 36.
Bxb7 {[%clk 0:00:17.9]} 36... Bb2 {[%clk 0:00:01.9]} 37. Ra6 {[%clk 0:00:16.9]}
37... a3 {[%clk 0:00:02.4]} 38. h4 {[%clk 0:00:14.4]} 38... Rd8 {[%clk
0:00:02.1]} 39. Ra7 {[%clk 0:00:14.4]} 39... Rd7 {[%clk 0:00:02.2]} 40. Ra8+
{[%clk 0:00:14.2]} 40... Kg7 {[%clk 0:00:02.7]} 41. Be4 {[%clk 0:00:14.4]} 41...
Rc7 {[%clk 0:00:03.6]} 42. Bd5 {[%clk 0:00:14.2]} 42... Kg6 {[%clk 0:00:02.8]}
43. Kf3 {[%clk 0:00:14.1]} 43... Rc3+ {[%clk 0:00:01.7]} 44. Kg4 {[%clk
0:00:13.7]} 44... h5+ {[%clk 0:00:02.4]} 45. gxh6 {[%clk 0:00:13.7]} 45... Kxh6
{[%clk 0:00:03.3]} 46. Ra6+ {[%clk 0:00:10.3]} 46... Kg7 {[%clk 0:00:03.7]} 47.
h5 {[%clk 0:00:09.5]} 47... Rc5 {[%clk 0:00:03.8]} 48. h6+ {[%clk 0:00:08.5]}
48... Kf8 {[%clk 0:00:04.3]} 49. Be4 {[%clk 0:00:06.6]} 49... Ke7 {[%clk
0:00:03.8]} 50. h7 {[%clk 0:00:06.6]} 50... Rc4 {[%clk 0:00:04.2]} 51. Kf3
{[%clk 0:00:06.4]} 51... Kd7 {[%clk 0:00:04.5]} 52. Ra7+ {[%clk 0:00:06.7]}
52... Kd6 {[%clk 0:00:04.6]} 53. Ra8 {[%clk 0:00:06.4]} 53... Kc5 {[%clk
0:00:04.8]} 54. Bb1 {[%clk 0:00:03.3]} 54... Rc1 {[%clk 0:00:04.6]} 55. Ba2
{[%clk 0:00:03.7]} 55... Rc3+ {[%clk 0:00:04.9]} 56. Kg2 {[%clk 0:00:03.5]}
56... Rc2+ {[%clk 0:00:05.3]} 57. Kh3 {[%clk 0:00:03.6]} 57... Kb4 {[%clk
0:00:06.1]} 58. Bg8 {[%clk 0:00:03.4]} 58... Bg7 {[%clk 0:00:05.8]} 59. Kg4
{[%clk 0:00:03.5]} 59... Rc6 {[%clk 0:00:05.2]} 60. Kf5 {[%clk 0:00:02.7]} 60...
Rc5+ {[%clk 0:00:05.1]} 61. Kg6 {[%clk 0:00:02.9]} 61... Rc7 {[%clk 0:00:05.9]}
62. g4 {[%clk 0:00:03.2]} 62... Bc3 {[%clk 0:00:06.1]} 63. g5 {[%clk 0:00:03.6]}
63... Rg7+ {[%clk 0:00:06.8]} 64. Kh6 {[%clk 0:00:03.9]} 64... Rc7 {[%clk
0:00:07.7]} 65. Be6 {[%clk 0:00:02.5]} 65... Bg7+ {[%clk 0:00:07.4]} 66. Kg6
{[%clk 0:00:02.6]} 66... Bb2 {[%clk 0:00:08.1]} 67. h8=Q {[%clk 0:00:02.2]}
67... Bxh8 {[%clk 0:00:08.1]} 68. Rxh8 {[%clk 0:00:03.1]} 68... Rc6 {[%clk
0:00:09]} 69. Kf5 {[%clk 0:00:03.7]} 69... Rc5+ {[%clk 0:00:09.4]} 70. Kf6
{[%clk 0:00:03.8]} 70... Ra5 {[%clk 0:00:10.3]} 71. Rh1 {[%clk 0:00:03.1]} 71...
Kc3 {[%clk 0:00:10.5]} 72. g6 {[%clk 0:00:03.4]} 1-0

[Event "Early-Titled-Tuesday-Blitz-April-02-2024"]
[Site "Chess.com"]
[Date "2024.04.02"]
[Round "6"]
[White "MIss_MIaMI"]
[Black "Orphanator2009"]
[Result "1/2-1/2"]
[WhiteElo "2374"]
[BlackElo "2532"]
[TimeControl "180+1"]
[EndTime "9:08:05 PDT"]
[Termination "Game drawn by agreement"]

1. e4 {[%clk 0:03:00.9]} 1... c5 {[%clk 0:02:58.4]} 2. Nf3 {[%clk 0:03:00.9]}
2... d6 {[%clk 0:02:58.4]} 3. d4 {[%clk 0:03:01]} 3... cxd4 {[%clk 0:02:59.3]}
4. c3 {[%clk 0:03:01.7]} 4... Nf6 {[%clk 0:02:59.2]} 5. Bd3 {[%clk 0:03:01.9]}
5... dxc3 {[%clk 0:02:57.9]} 6. Nxc3 {[%clk 0:03:02.8]} 6... Nc6 {[%clk
0:02:57.5]} 7. h3 {[%clk 0:03:02.3]} 7... g6 {[%clk 0:02:57.9]} 8. O-O {[%clk
0:03:02.8]} 8... Bg7 {[%clk 0:02:58.3]} 9. Qe2 {[%clk 0:03:03]} 9... O-O {[%clk
0:02:58.6]} 10. Rd1 {[%clk 0:03:03.7]} 10... Bd7 {[%clk 0:02:56.2]} 11. Bf4
{[%clk 0:03:04]} 11... Qa5 {[%clk 0:02:25.6]} 12. a3 {[%clk 0:02:57]} 12... Rac8
{[%clk 0:02:17.3]} 13. Rac1 {[%clk 0:02:56.5]} 13... Be6 {[%clk 0:02:11]} 14.
Ng5 {[%clk 0:02:49.3]} 14... Bb3 {[%clk 0:02:08.5]} 15. Rd2 {[%clk 0:02:48.7]}
15... Ne5 {[%clk 0:02:03]} 16. Bb1 {[%clk 0:02:28.7]} 16... Nh5 {[%clk
0:01:40.4]} 17. Be3 {[%clk 0:02:25]} 17... Nc4 {[%clk 0:01:40]} 18. Rd3 {[%clk
0:02:17.5]} 18... Nxe3 {[%clk 0:01:39.7]} 19. Qxe3 {[%clk 0:02:15.3]} 19... Bc4
{[%clk 0:01:25.3]} 20. Rdd1 {[%clk 0:02:11.8]} 20... Be5 {[%clk 0:01:13.1]} 21.
g3 {[%clk 0:02:07.7]} 21... Bg7 {[%clk 0:01:12.7]} 22. Kh2 {[%clk 0:01:59.5]}
22... Nf6 {[%clk 0:01:11.9]} 23. f4 {[%clk 0:01:56.3]} 23... Qc5 {[%clk
0:01:07.9]} 24. Qxc5 {[%clk 0:01:53.1]} 24... Rxc5 {[%clk 0:01:05.8]} 25. Na4
{[%clk 0:01:40.3]} 25... Rcc8 {[%clk 0:01:04.3]} 26. Nc3 {[%clk 0:01:34.3]}
26... Bb3 {[%clk 0:01:01.6]} 27. Re1 {[%clk 0:01:33.8]} 27... e6 {[%clk
0:00:57.9]} 28. Nf3 {[%clk 0:01:33.3]} 28... d5 {[%clk 0:00:57.8]} 29. e5 {[%clk
0:01:19.9]} 29... Nd7 {[%clk 0:00:56.8]} 30. Nb5 {[%clk 0:01:17.8]} 30... Nb6
{[%clk 0:00:17.9]} 31. Nxa7 {[%clk 0:01:03.6]} 31... Rxc1 {[%clk 0:00:17.4]} 32.
Rxc1 {[%clk 0:01:04.5]} 32... Ra8 {[%clk 0:00:17.8]} 33. Nb5 {[%clk 0:01:01.9]}
33... Rc8 {[%clk 0:00:18]} 34. Rxc8+ {[%clk 0:00:59]} 34... Nxc8 {[%clk
0:00:18.9]} 35. Nfd4 {[%clk 0:00:58.2]} 35... Bc4 {[%clk 0:00:19]} 36. b3 {[%clk
0:00:55.5]} 36... Bxb5 {[%clk 0:00:18.4]} 37. Nxb5 {[%clk 0:00:56.4]} 37... Kf8
{[%clk 0:00:19]} 38. Kg2 {[%clk 0:00:54.5]} 38... Ke8 {[%clk 0:00:19.5]} 39. Kf3
{[%clk 0:00:55.3]} 39... Bf8 {[%clk 0:00:20.1]} 40. a4 {[%clk 0:00:52.6]} 40...
Kd7 {[%clk 0:00:20.5]} 41. Ke3 {[%clk 0:00:52.7]} 41... Na7 {[%clk 0:00:19.8]}
42. Nxa7 {[%clk 0:00:52.2]} 42... Bc5+ {[%clk 0:00:19.9]} 43. Kd3 {[%clk
0:00:49.5]} 43... Bxa7 {[%clk 0:00:20.8]} 44. b4 {[%clk 0:00:48.2]} 44... Bf2
{[%clk 0:00:20.1]} 45. g4 {[%clk 0:00:48.8]} 45... Be1 {[%clk 0:00:20.5]} 46. b5
{[%clk 0:00:43.8]} 46... Kc7 {[%clk 0:00:20.2]} 47. Ba2 {[%clk 0:00:43.7]} 47...
Bg3 {[%clk 0:00:19.3]} 48. Ke3 {[%clk 0:00:43.5]} 48... Bh2 {[%clk 0:00:19.9]}
49. a5 {[%clk 0:00:36.4]} 49... Bg1+ {[%clk 0:00:20]} 50. Kd3 {[%clk 0:00:33.8]}
50... Bc5 {[%clk 0:00:19.7]} 51. f5 {[%clk 0:00:32.5]} 51... gxf5 {[%clk
0:00:19]} 52. gxf5 {[%clk 0:00:33.4]} 52... Bb4 {[%clk 0:00:19]} 53. a6 {[%clk
0:00:26.3]} 53... bxa6 {[%clk 0:00:19.9]} 54. bxa6 {[%clk 0:00:27.2]} 54... Kb6
{[%clk 0:00:20.3]} 55. fxe6 {[%clk 0:00:26.6]} 55... fxe6 {[%clk 0:00:21.2]} 56.
Bb1 {[%clk 0:00:23.4]} 56... Kxa6 {[%clk 0:00:20.3]} 57. Kd4 {[%clk 0:00:24.1]}
57... h6 {[%clk 0:00:19.6]} 58. Bg6 {[%clk 0:00:24.3]} 58... Ba3 {[%clk
0:00:17.5]} 59. Kc3 {[%clk 0:00:21.5]} 59... Kb5 {[%clk 0:00:14.4]} 60. Bf7
{[%clk 0:00:22]} 60... Bf8 {[%clk 0:00:13.3]} 61. Bxe6 {[%clk 0:00:22.2]} 61...
Kc5 {[%clk 0:00:13.9]} 62. Bf7 {[%clk 0:00:18.2]} 62... Bg7 {[%clk 0:00:14.1]}
63. Kd3 {[%clk 0:00:14.7]} 63... Bxe5 {[%clk 0:00:14.2]} 64. h4 {[%clk
0:00:15.3]} 64... d4 {[%clk 0:00:13.6]} 65. h5 {[%clk 0:00:15.7]} 65... Kd6
{[%clk 0:00:14.2]} 66. Bg6 {[%clk 0:00:15.3]} 66... Ke7 {[%clk 0:00:14.9]} 67.
Ke4 {[%clk 0:00:15.1]} 67... Kf6 {[%clk 0:00:14.8]} 68. Kd3 {[%clk 0:00:15.8]}
68... Kg5 {[%clk 0:00:14.6]} 69. Ke4 {[%clk 0:00:16.3]} 69... Bg7 {[%clk
0:00:15]} 70. Kd3 {[%clk 0:00:16.7]} 70... Kf4 {[%clk 0:00:15.7]} 71. Bh7 {[%clk
0:00:17.1]} 71... Bf6 {[%clk 0:00:13.9]} 72. Bg6 {[%clk 0:00:17.4]} 72... Kg4
{[%clk 0:00:14.5]} 73. Ke4 {[%clk 0:00:17.2]} 73... Kg3 {[%clk 0:00:14.8]} 74.
Kd3 {[%clk 0:00:17.3]} 74... Kf3 {[%clk 0:00:15.5]} 75. Bh7 {[%clk 0:00:17.6]}
75... Kf4 {[%clk 0:00:14.8]} 76. Bg6 {[%clk 0:00:18.1]} 76... Ke5 {[%clk
0:00:15.4]} 77. Bh7 {[%clk 0:00:16.5]} 77... Kd5 {[%clk 0:00:15]} 78. Bg6 {[%clk
0:00:17.2]} 78... Be5 {[%clk 0:00:15.3]} 79. Bf7+ {[%clk 0:00:17.7]} 79... Kd6
{[%clk 0:00:15.7]} 80. Bg6 {[%clk 0:00:18.6]} 80... Ke7 {[%clk 0:00:16.1]} 81.
Bh7 {[%clk 0:00:19]} 81... Kf7 {[%clk 0:00:16]} 82. Bg6+ {[%clk 0:00:19.9]}
82... Kg7 {[%clk 0:00:16.6]} 83. Be8 {[%clk 0:00:19.5]} 83... Kf6 {[%clk
0:00:17]} 84. Bg6 {[%clk 0:00:17]} 1/2-1/2

[Event "Early-Titled-Tuesday-Blitz-April-02-2024"]
[Site "Chess.com"]
[Date "2024.04.02"]
[Round "6"]
[White "PonyQueen07"]
[Black "Malikova777"]
[Result "1-0"]
[WhiteElo "2286"]
[BlackElo "2297"]
[TimeControl "180+1"]
[EndTime "9:08:05 PDT"]
[Termination "PonyQueen07 won by resignation"]

1. c4 {[%clk 0:03:00.9]} 1... Nf6 {[%clk 0:02:58.9]} 2. Nc3 {[%clk 0:03:01.2]}
2... e5 {[%clk 0:02:58.4]} 3. g3 {[%clk 0:03:01.6]} 3... d5 {[%clk 0:02:57.6]}
4. cxd5 {[%clk 0:03:01.5]} 4... Nxd5 {[%clk 0:02:58.5]} 5. Bg2 {[%clk 0:03:02]}
5... Nb6 {[%clk 0:02:58.7]} 6. Nf3 {[%clk 0:03:02.6]} 6... Nc6 {[%clk
0:02:58.7]} 7. O-O {[%clk 0:03:03.2]} 7... Be7 {[%clk 0:02:55.7]} 8. d3 {[%clk
0:03:03.7]} 8... O-O {[%clk 0:02:55]} 9. a3 {[%clk 0:03:03.2]} 9... Be6 {[%clk
0:02:53.2]} 10. b4 {[%clk 0:02:59.4]} 10... f6 {[%clk 0:02:52.3]} 11. Bb2 {[%clk
0:02:57.1]} 11... a5 {[%clk 0:02:51.4]} 12. b5 {[%clk 0:02:54.4]} 12... Nd4
{[%clk 0:02:50]} 13. Nd2 {[%clk 0:02:38.8]} 13... Nd5 {[%clk 0:02:46.6]} 14.
Nxd5 {[%clk 0:02:35.9]} 14... Bxd5 {[%clk 0:02:46.4]} 15. Bxd4 {[%clk
0:02:31.8]} 15... exd4 {[%clk 0:02:39.3]} 16. Bxd5+ {[%clk 0:02:15.9]} 16...
Qxd5 {[%clk 0:02:37.2]} 17. Qb3 {[%clk 0:02:16.2]} 17... Rfd8 {[%clk 0:02:36.1]}
18. Qxd5+ {[%clk 0:02:11.1]} 18... Rxd5 {[%clk 0:02:37]} 19. a4 {[%clk
0:02:11.2]} 19... Bb4 {[%clk 0:02:32.2]} 20. Nc4 {[%clk 0:02:06.1]} 20... b6
{[%clk 0:02:32.1]} 21. Rad1 {[%clk 0:01:59.2]} 21... Re8 {[%clk 0:02:30.5]} 22.
e4 {[%clk 0:01:52]} 22... dxe3 {[%clk 0:02:29.2]} 23. fxe3 {[%clk 0:01:52.1]}
23... Bc5 {[%clk 0:02:01.4]} 24. Rfe1 {[%clk 0:01:37]} 24... f5 {[%clk
0:01:57.8]} 25. Kg2 {[%clk 0:01:32.9]} 25... Red8 {[%clk 0:01:49]} 26. d4 {[%clk
0:01:31]} 26... Bb4 {[%clk 0:01:47.5]} 27. Re2 {[%clk 0:01:27]} 27... g6 {[%clk
0:01:47.1]} 28. Rf1 {[%clk 0:01:21.1]} 28... Re8 {[%clk 0:01:40.3]} 29. Ne5
{[%clk 0:01:15.8]} 29... Bd6 {[%clk 0:01:36.4]} 30. Nc6 {[%clk 0:01:11.4]} 30...
Kg7 {[%clk 0:01:29.5]} 31. Rc1 {[%clk 0:00:49.1]} 31... g5 {[%clk 0:01:26.4]}
32. h3 {[%clk 0:00:45.5]} 32... f4 {[%clk 0:01:24.1]} 33. e4 {[%clk 0:00:39.2]}
33... g4 {[%clk 0:01:07]} 34. hxg4 {[%clk 0:00:37.1]} 34... Rg5 {[%clk
0:00:59.9]} 35. e5 {[%clk 0:00:29.9]} 35... Rxg4 {[%clk 0:00:52.3]} 36. Kf3
{[%clk 0:00:26.8]} 36... Rxg3+ {[%clk 0:00:51.4]} 37. Kxf4 {[%clk 0:00:27.2]}
37... Ba3 {[%clk 0:00:32.5]} 38. Kxg3 {[%clk 0:00:18.1]} 38... Bxc1 {[%clk
0:00:30.8]} 39. d5 {[%clk 0:00:16.9]} 39... Ba3 {[%clk 0:00:27.2]} 40. Kf4
{[%clk 0:00:13.8]} 40... h5 {[%clk 0:00:26.3]} 41. Rg2+ {[%clk 0:00:11.4]} 41...
Kh6 {[%clk 0:00:25.8]} 42. e6 {[%clk 0:00:08.9]} 42... Bd6+ {[%clk 0:00:24.9]}
43. Ke4 {[%clk 0:00:07.2]} 43... h4 {[%clk 0:00:24.7]} 44. Nd4 {[%clk
0:00:03.6]} 44... h3 {[%clk 0:00:20.7]} 45. Nf5+ {[%clk 0:00:03.1]} 45... Kh5
{[%clk 0:00:17.1]} 46. Ng7+ {[%clk 0:00:03.2]} 46... Kh4 {[%clk 0:00:16]} 47.
Nf5+ {[%clk 0:00:03.3]} 47... Kh5 {[%clk 0:00:16.3]} 48. Ng7+ {[%clk 0:00:03.5]}
48... Kh6 {[%clk 0:00:16.7]} 49. Nf5+ {[%clk 0:00:03.1]} 49... Kh7 {[%clk
0:00:10.5]} 50. Rg7+ {[%clk 0:00:03.4]} 50... Kh8 {[%clk 0:00:10.8]} 51. Rg4
{[%clk 0:00:03]} 51... h2 {[%clk 0:00:09.3]} 52. Rh4+ {[%clk 0:00:03.1]} 52...
Kg8 {[%clk 0:00:06.4]} 53. Nxd6 {[%clk 0:00:03.2]} 53... cxd6 {[%clk 0:00:06.5]}
54. Rxh2 {[%clk 0:00:03.5]} 54... Rc8 {[%clk 0:00:07.4]} 55. Rf2 {[%clk
0:00:02.2]} 55... Rc4+ {[%clk 0:00:06.7]} 56. Kf5 {[%clk 0:00:01.8]} 56... Rd4
{[%clk 0:00:06.6]} 57. Kf6 {[%clk 0:00:02.1]} 57... Rxd5 {[%clk 0:00:06.6]} 58.
Ke7 {[%clk 0:00:02.7]} 58... Rd4 {[%clk 0:00:05.9]} 59. Kd7 {[%clk 0:00:02.8]}
59... Rxa4 {[%clk 0:00:06.3]} 60. e7 {[%clk 0:00:03.3]} 60... Re4 {[%clk
0:00:06.6]} 61. e8=Q+ {[%clk 0:00:03.4]} 61... Rxe8 {[%clk 0:00:07.5]} 62. Kxe8
{[%clk 0:00:04.2]} 62... a4 {[%clk 0:00:08.2]} 63. Ra2 {[%clk 0:00:04]} 63... d5
{[%clk 0:00:08.5]} 64. Rxa4 {[%clk 0:00:04.6]} 64... Kg7 {[%clk 0:00:09.3]} 65.
Rd4 {[%clk 0:00:05.2]} 65... Kg6 {[%clk 0:00:10.2]} 66. Rxd5 {[%clk 0:00:05.9]}
66... Kf6 {[%clk 0:00:11.1]} 67. Rd6+ {[%clk 0:00:06.4]} 67... Ke5 {[%clk
0:00:12]} 68. Rxb6 {[%clk 0:00:07.1]} 68... Kd5 {[%clk 0:00:12.9]} 69. Rc6
{[%clk 0:00:07.5]} 69... Kd4 {[%clk 0:00:13]} 70. Rc1 {[%clk 0:00:08.2]} 70...
Kd5 {[%clk 0:00:13.9]} 71. b6 {[%clk 0:00:08.6]} 71... Kd4 {[%clk 0:00:14.6]}
72. b7 {[%clk 0:00:09.3]} 72... Kd3 {[%clk 0:00:15.5]} 73. b8=Q {[%clk
0:00:09.6]} 73... Kd2 {[%clk 0:00:16.4]} 74. Rc6 {[%clk 0:00:09]} 1-0

[Event "Early-Titled-Tuesday-Blitz-April-02-2024"]
[Site "Chess.com"]
[Date "2024.04.02"]
[Round "6"]
[White "JimDiGrease"]
[Black "sokidze"]
[Result "1-0"]
[WhiteElo "2964"]
[BlackElo "2790"]
[TimeControl "180+1"]
[EndTime "9:08:06 PDT"]
[Termination "JimDiGrease won by resignation"]

1. d4 {[%clk 0:03:00.9]} 1... d5 {[%clk 0:03:00.5]} 2. c4 {[%clk 0:03:00.2]}
2... e6 {[%clk 0:03:01.1]} 3. Nf3 {[%clk 0:03:00.5]} 3... Nf6 {[%clk 0:03:01.4]}
4. Qc2 {[%clk 0:02:59.7]} 4... Be7 {[%clk 0:02:53.1]} 5. cxd5 {[%clk 0:02:59.9]}
5... exd5 {[%clk 0:02:53]} 6. Bf4 {[%clk 0:03:00.3]} 6... c6 {[%clk 0:02:52.3]}
7. e3 {[%clk 0:03:00.9]} 7... O-O {[%clk 0:02:52.5]} 8. Nc3 {[%clk 0:03:01]}
8... Bd6 {[%clk 0:02:43.2]} 9. Bxd6 {[%clk 0:02:49.3]} 9... Qxd6 {[%clk
0:02:44.1]} 10. h3 {[%clk 0:02:49.8]} 10... Re8 {[%clk 0:02:41.1]} 11. Bd3
{[%clk 0:02:49.8]} 11... Be6 {[%clk 0:02:39.2]} 12. O-O {[%clk 0:02:49.8]} 12...
Nbd7 {[%clk 0:02:39.9]} 13. Rab1 {[%clk 0:02:49.4]} 13... a5 {[%clk 0:02:37.2]}
14. a3 {[%clk 0:02:49.6]} 14... g6 {[%clk 0:02:36.1]} 15. Rfc1 {[%clk
0:02:44.4]} 15... Rec8 {[%clk 0:02:31.4]} 16. Na4 {[%clk 0:02:28.7]} 16... Qe7
{[%clk 0:01:57.8]} 17. b4 {[%clk 0:01:29]} 17... b5 {[%clk 0:01:56.6]} 18. Nc5
{[%clk 0:01:28.6]} 18... Nxc5 {[%clk 0:01:53.8]} 19. dxc5 {[%clk 0:01:13.9]}
19... axb4 {[%clk 0:01:40.8]} 20. axb4 {[%clk 0:01:14.8]} 20... Ra4 {[%clk
0:01:41.5]} 21. Nd4 {[%clk 0:01:12.6]} 21... Bd7 {[%clk 0:01:41.4]} 22. Qc3
{[%clk 0:01:08.1]} 22... Rca8 {[%clk 0:01:31.4]} 23. Ra1 {[%clk 0:01:08.4]}
23... Qd8 {[%clk 0:00:55.9]} 24. Bc2 {[%clk 0:01:06.2]} 24... Rxa1 {[%clk
0:00:52.9]} 25. Rxa1 {[%clk 0:01:07.1]} 25... Ne8 {[%clk 0:00:45.8]} 26. Rxa8
{[%clk 0:00:48]} 26... Qxa8 {[%clk 0:00:45.7]} 27. e4 {[%clk 0:00:48.4]} 27...
Nc7 {[%clk 0:00:43.1]} 28. Kh2 {[%clk 0:00:36.2]} 28... Qe8 {[%clk 0:00:38.6]}
29. Qg3 {[%clk 0:00:32.9]} 29... Ne6 {[%clk 0:00:38.5]} 30. Nb3 {[%clk
0:00:25.5]} 30... dxe4 {[%clk 0:00:29.3]} 31. Bxe4 {[%clk 0:00:26.4]} 31... Ng7
{[%clk 0:00:29.5]} 32. Bf3 {[%clk 0:00:21.7]} 32... Nf5 {[%clk 0:00:25.4]} 33.
Qc7 {[%clk 0:00:21.6]} 33... Nh4 {[%clk 0:00:17.1]} 34. Nd4 {[%clk 0:00:17.2]}
34... Nxf3+ {[%clk 0:00:17.5]} 35. Nxf3 {[%clk 0:00:18.1]} 35... f6 {[%clk
0:00:17.7]} 36. Nd4 {[%clk 0:00:13.2]} 36... h5 {[%clk 0:00:16.8]} 37. Qf4
{[%clk 0:00:08.3]} 37... Kg7 {[%clk 0:00:13.3]} 38. Nf3 {[%clk 0:00:08.5]} 38...
g5 {[%clk 0:00:10.1]} 39. Qd4 {[%clk 0:00:07.1]} 39... Qe7 {[%clk 0:00:07.4]}
40. Nxg5 {[%clk 0:00:06.1]} 40... Bf5 {[%clk 0:00:07.2]} 41. Nf3 {[%clk
0:00:06.2]} 41... Be4 {[%clk 0:00:07.3]} 42. Nh4 {[%clk 0:00:04.8]} 42... Kf7
{[%clk 0:00:07.2]} 43. f3 {[%clk 0:00:04.5]} 43... Bd5 {[%clk 0:00:07.2]} 44.
Qf4 {[%clk 0:00:03.6]} 44... Qe5 {[%clk 0:00:04.7]} 45. Qxe5 {[%clk 0:00:02.3]}
45... fxe5 {[%clk 0:00:05.6]} 46. Nf5 {[%clk 0:00:03]} 46... Kf6 {[%clk
0:00:05.9]} 47. Ne3 {[%clk 0:00:03.6]} 47... Be6 {[%clk 0:00:05.1]} 48. Kg3
{[%clk 0:00:04.2]} 48... Kg5 {[%clk 0:00:05.1]} 49. h4+ {[%clk 0:00:04.3]} 49...
Kf6 {[%clk 0:00:05.7]} 50. f4 {[%clk 0:00:05.2]} 50... Bf7 {[%clk 0:00:05]} 51.
Kf3 {[%clk 0:00:04.6]} 51... Bg6 {[%clk 0:00:05.3]} 52. Nf1 {[%clk 0:00:03.8]}
52... Bf7 {[%clk 0:00:03]} 53. Ne3 {[%clk 0:00:03.9]} 53... Bg6 {[%clk
0:00:03.3]} 54. g4 {[%clk 0:00:04.6]} 54... exf4 {[%clk 0:00:02.3]} 55. Kxf4
{[%clk 0:00:05]} 55... hxg4 {[%clk 0:00:03]} 56. Kxg4 {[%clk 0:00:05.2]} 56...
Ke5 {[%clk 0:00:02.9]} 57. h5 {[%clk 0:00:04.2]} 57... Bh7 {[%clk 0:00:02.1]}
58. Kg5 {[%clk 0:00:03.1]} 58... Kd4 {[%clk 0:00:02.6]} 59. Ng4 {[%clk
0:00:03.1]} 59... Kc4 {[%clk 0:00:02.5]} 60. Nf6 {[%clk 0:00:03.2]} 60... Bd3
{[%clk 0:00:02.5]} 61. Nd7 {[%clk 0:00:02.4]} 61... Kxb4 {[%clk 0:00:02.4]} 62.
Ne5 {[%clk 0:00:03.1]} 62... Be4 {[%clk 0:00:02.3]} 63. h6 {[%clk 0:00:02.6]}
63... Bh7 {[%clk 0:00:03]} 64. Kf6 {[%clk 0:00:02.8]} 64... Kxc5 {[%clk
0:00:03.2]} 65. Kg7 {[%clk 0:00:03.5]} 65... b4 {[%clk 0:00:01.8]} 66. Kxh7
{[%clk 0:00:03.8]} 66... b3 {[%clk 0:00:02]} 67. Kg7 {[%clk 0:00:04.4]} 67... b2
{[%clk 0:00:02.5]} 68. Nd3+ {[%clk 0:00:04.7]} 1-0